bitfinex-derivatives/quotes_BTCF0:USTF0_20251120
["timestamp","ask_amount","ask_price","bid_price","bid_amount"]
[1763633695585,0.63418943,91685.0,91684.0,0.00116366]
[1763633695772,0.2777557,91673.0,91670.0,0.09784909]
[1763633696081,0.27995373,91673.0,91666.0,0.1092029]
[1763633696283,0.27995373,91673.0,91662.0,0.45864909]
[1763633696983,0.27995373,91673.0,91669.0,0.1091993]
[1763633697186,0.27995373,91673.0,91672.0,0.43763]
[1763633697377,0.27995373,91673.0,91672.0,0.43863]
[1763633697776,0.27995373,91673.0,91672.0,0.51954]
[1763633698583,0.27995373,91673.0,91672.0,0.6287369]
[1763633698879,0.17075803,91673.0,91672.0,0.51954]
[1763633699077,0.00219803,91673.0,91672.0,0.51954]
[1763633699681,0.08665803,91673.0,91672.0,0.51954]
[1763633700078,0.00219803,91673.0,91672.0,0.51954]
[1763633700280,0.16872357,91682.0,91681.0,0.15774]
[1763633700477,0.00016357,91682.0,91681.0,0.6277262]
[1763633701074,0.1709216,91682.0,91681.0,0.51854]
[1763633701484,0.1709216,91682.0,91681.0,0.51954]
[1763633708992,0.0868216,91682.0,91681.0,0.51954]
[1763633709386,0.1655616,91682.0,91681.0,0.51954]
[1763633712088,0.0868216,91682.0,91681.0,0.51954]
[1763633712580,0.0023616,91682.0,91681.0,0.51954]
[1763633712790,0.00016357,91682.0,91681.0,0.51954]
[1763633713090,0.2594762,91698.0,91697.0,0.16031]
[1763633713283,0.26167423,91698.0,91697.0,0.16031]
[1763633713887,0.15250803,91698.0,91697.0,0.16031]
[1763633714387,0.00219803,91698.0,91697.0,0.16031]
[1763633714591,0.15047357,91707.0,91706.0,0.16031]
[1763633714788,0.1526716,91707.0,91706.0,0.52111]
[1763633715691,0.1526716,91707.0,91706.0,0.3608]
[1763633716392,0.1526716,91707.0,91706.0,0.52111]
[1763633717492,0.1526716,91707.0,91706.0,0.16031]
[1763633717989,0.1536716,91707.0,91706.0,0.16031]
[1763633718489,0.0033616,91707.0,91706.0,0.16031]
[1763633718692,0.25947,91703.0,91702.0,0.3608]
[1763633718887,0.26166803,91703.0,91702.0,0.3608]
[1763633719079,0.26166803,91703.0,91702.0,0.52111]
[1763633719080,0.15250803,91703.0,91702.0,0.52111]
[1763633722692,0.26166803,91703.0,91702.0,0.52111]
[1763633723194,0.26166803,91703.0,91702.0,0.43654]
[1763633723494,0.26166803,91703.0,91702.0,0.52111]
[1763633725286,0.26166803,91703.0,91702.0,0.3608]
[1763633725993,0.26166803,91703.0,91702.0,0.43654]
[1763633726898,0.26166803,91703.0,91702.0,0.52111]
[1763633727293,0.15250803,91703.0,91702.0,0.52111]
[1763633729491,0.07022803,91703.0,91702.0,0.52111]
[1763633730704,0.13397803,91703.0,91702.0,0.52111]
[1763633732705,0.24313803,91703.0,91702.0,0.52111]
[1763633733296,0.07022803,91703.0,91702.0,0.6302712]
[1763633733498,0.00219803,91703.0,91702.0,0.6302712]
[1763633733703,0.11135803,91703.0,91702.0,0.6302712]
[1763633733907,0.00219803,91703.0,91702.0,0.6302712]
[1763633734604,0.00219803,91703.0,91702.0,0.52111]
[1763633735305,0.06937803,91703.0,91702.0,0.52111]
[1763633736309,0.00219803,91703.0,91702.0,0.52111]
[1763633736807,0.13908803,91703.0,91702.0,0.52111]
[1763633739204,0.13908803,91703.0,91702.0,0.6302712]
[1763633739406,0.06937803,91703.0,91702.0,0.6302712]
[1763633739809,0.00219803,91703.0,91702.0,0.6302712]
[1763633741412,0.00219803,91703.0,91702.0,0.52111]
[1763633741797,0.06937803,91703.0,91702.0,0.52111]
[1763633742101,0.13908803,91703.0,91702.0,0.52111]
[1763633742907,0.13908803,91703.0,91702.0,0.3608]
[1763633743114,0.2460595,91695.0,91694.0,0.42394]
[1763633743309,0.2460595,91695.0,91694.0,0.48905]
[1763633743310,0.24825753,91695.0,91694.0,0.48905]
[1763633750208,0.24825753,91695.0,91694.0,0.12825]
[1763633750406,0.2460667,91689.0,91688.0,0.00016357]
[1763633750606,0.24826473,91689.0,91688.0,0.00016357]
[1763633752612,0.24826473,91689.0,91688.0,0.00116357]
[1763633754417,0.35370473,91689.0,91688.0,0.12941357]
[1763633754817,0.24826473,91689.0,91688.0,0.12941357]
[1763633755019,0.35370473,91689.0,91688.0,0.12941357]
[1763633755413,0.35370473,91689.0,91688.0,0.06430357]
[1763633755622,0.35370473,91689.0,91688.0,0.00116357]
[1763633757326,0.35370473,91689.0,91688.0,0.06430357]
[1763633758523,0.35370473,91689.0,91688.0,0.00116357]
[1763633758723,0.24826473,91689.0,91688.0,0.00116357]
[1763633759025,0.71450473,91689.0,91688.0,0.00116357]
[1763633760724,0.2460809,91677.0,91676.0,0.3608]
[1763633760917,0.2460905,91669.0,91668.0,0.48905]
[1763633761116,0.24828853,91669.0,91668.0,0.48905]
[1763633762427,0.24828853,91669.0,91668.0,0.52365]
[1763633762820,0.24828853,91669.0,91668.0,0.52465]
[1763633763131,0.00016357,91678.0,91677.0,0.12848]
[1763633763328,0.0023616,91678.0,91677.0,0.12848]
[1763633763521,0.1115513,91678.0,91677.0,0.12848]
[1763633763722,0.0023616,91678.0,91677.0,0.12848]
[1763633764124,0.0023616,91678.0,91677.0,0.48928]
[1763633765426,0.00016357,91678.0,91677.0,0.48928]
[1763633768232,0.0023616,91678.0,91677.0,0.48928]
[1763633768732,0.1293816,91678.0,91677.0,0.48928]
[1763633769329,0.0636316,91678.0,91677.0,0.48928]
[1763633769736,0.0023616,91678.0,91677.0,0.48928]
[1763633770029,0.0636316,91678.0,91677.0,0.48928]
[1763633770332,0.1293816,91678.0,91677.0,0.48928]
[1763633771132,0.0636316,91678.0,91677.0,0.48928]
[1763633771527,0.1293816,91678.0,91677.0,0.48928]
[1763633771729,0.0023616,91678.0,91677.0,0.48928]
[1763633772620,0.00016357,91678.0,91677.0,0.48928]
[1763633773433,0.59698,91703.0,91702.0,0.12848]
[1763633773630,0.7326907,91703.0,91702.0,0.12848]
[1763633774031,0.7326907,91703.0,91702.0,0.06318]
[1763633774232,0.2361919,91693.0,91692.0,0.16308]
[1763633774433,0.23838993,91693.0,91692.0,0.16308]
[1763633775023,0.23838993,91693.0,91692.0,0.12848]
[1763633781334,0.1260002,91702.0,91692.0,0.12848]
[1763633781335,0.06143357,91702.0,91701.0,0.12848]
[1763633781536,0.0023616,91702.0,91701.0,0.12848]
[1763633782129,0.1293816,91702.0,91701.0,0.12848]
[1763633782333,0.0636316,91702.0,91701.0,0.12848]
[1763633783133,0.1293816,91702.0,91701.0,0.12848]
[1763633784136,0.0023616,91702.0,91701.0,0.12848]
[1763633784339,0.00016357,91702.0,91701.0,0.12848]
[1763633787759,0.06143357,91702.0,91701.0,0.12848]
[1763633788056,0.00016357,91702.0,91701.0,0.12848]
[1763633788447,0.1077616,91702.0,91701.0,0.12848]
[1763633794064,0.00016357,91702.0,91701.0,0.2376423]
[1763633794261,0.3608,91720.0,91718.0,0.10552]
[1763633794262,0.3220609,91719.0,91718.0,0.10552]
[1763633794463,0.10759803,91719.0,91718.0,0.10552]
[1763633794662,0.10779255,91726.0,91725.0,0.10552]
[1763633794857,0.10779255,91726.0,91725.0,0.2146538]
[1763633794858,0.00247058,91726.0,91725.0,0.2146538]
[1763633795366,0.00027255,91726.0,91725.0,0.2146538]
[1763633796964,0.00127255,91726.0,91725.0,0.2146538]
[1763633797360,0.00227255,91726.0,91725.0,0.10552]
[1763633797860,0.00227255,91726.0,91723.0,0.1054]
[1763633797861,0.00016357,91735.0,91734.0,0.10552]
[1763633798166,0.00016357,91735.0,91734.0,0.46632]
[1763633798370,0.00016357,91735.0,91734.0,1.96632]
[1763633798870,0.46832,91751.0,91750.0,0.10552]
[1763633799167,0.57962083,91751.0,91750.0,0.10552]
[1763633799971,0.58162083,91751.0,91750.0,0.10552]
[1763633800173,0.2166335,91742.0,91741.0,0.10568357]
[1763633800467,0.11131153,91742.0,91741.0,0.10568357]
[1763633802873,0.11431153,91742.0,91741.0,0.10568357]
[1763633803260,0.1121135,91742.0,91741.0,0.10568357]
[1763633804874,0.003,91742.0,91741.0,0.10568357]
[1763633805178,0.52357567,91760.0,91759.0,0.10552]
[1763633805472,0.47005567,91760.0,91759.0,0.10552]
[1763633805877,0.00016357,91760.0,91759.0,0.2146133]
[1763633806676,0.00016357,91760.0,91759.0,0.10552]
[1763633807974,0.1098816,91760.0,91759.0,0.10552]
[1763633808164,0.1098816,91760.0,91759.0,0.05288]
[1763633808363,0.2166133,91759.0,91758.0,0.3608]
[1763633808566,0.2166133,91759.0,91758.0,0.46632]
[1763633808567,0.21881133,91759.0,91758.0,0.46632]
[1763633811677,0.16481133,91759.0,91758.0,0.46632]
[1763633811869,0.00219803,91759.0,91758.0,0.46632]
[1763633812467,0.10971803,91759.0,91758.0,0.46632]
[1763633812872,0.10971803,91759.0,91758.0,0.46732]
[1763633814873,0.00219803,91759.0,91758.0,0.46732]
[1763633815280,0.00219803,91759.0,91758.0,0.46632]
[1763633815477,0.05571803,91759.0,91758.0,0.46632]
[1763633815682,0.10971803,91759.0,91758.0,0.46632]
[1763633815886,0.10971803,91759.0,91758.0,0.10552]
[1763633816177,0.10971803,91759.0,91749.0,0.10552]
[1763633816178,0.2166241,91750.0,91749.0,0.10552]
[1763633816384,0.21882213,91750.0,91749.0,0.10552]
[1763633818683,0.00219803,91750.0,91749.0,0.13938]
[1763633819185,0.1626141,91759.0,91757.0,0.1090956]
[1763633819483,0.11129213,91759.0,91758.0,0.10552]
[1763633819881,0.00219803,91759.0,91758.0,0.10552]
[1763633820982,0.00016357,91760.0,91759.0,0.2146134]
[1763633821684,0.00016357,91760.0,91759.0,0.10552]
[1763633824082,0.1018116,91760.0,91759.0,0.05288]
[1763633824390,0.2085481,91755.0,91754.0,0.10273]
[1763633824592,0.57154613,91755.0,91754.0,0.10273]
[1763633824883,0.2085576,91747.0,91746.0,0.46353]
[1763633825083,0.21075563,91747.0,91746.0,0.46353]
[1763633825277,0.23859692,91747.0,91746.0,0.46353]
[1763633828380,0.03003932,91747.0,91746.0,0.46353]
[1763633829186,0.12948932,91747.0,91746.0,0.46353]
[1763633829489,0.07703932,91747.0,91746.0,0.46353]
[1763633831487,0.03003932,91747.0,91746.0,0.46353]
[1763633832186,0.02784129,91747.0,91746.0,0.46353]
[1763633832586,0.04716357,91760.0,91759.0,0.10273]
[1763633832787,0.07694646,91760.0,91759.0,0.10273]
[1763633833990,0.02994646,91760.0,91759.0,0.10273]
[1763633834395,0.07694646,91760.0,91759.0,0.10273]
[1763633834885,0.0023616,91760.0,91759.0,0.10273]
[1763633835293,0.10925577,91760.0,91759.0,0.10273]
[1763633835489,0.2109038,91760.0,91759.0,0.10273]
[1763633835688,0.2393038,91760.0,91759.0,0.10273]
[1763633836281,0.2393038,91760.0,91756.0,0.3608]
[1763633836282,0.2085458,91757.0,91756.0,0.3608]
[1763633836594,0.21074383,91757.0,91756.0,0.46353]
[1763633838297,0.00219803,91757.0,91756.0,0.46353]
[1763633840088,0.00219803,91757.0,91756.0,0.46453]
[1763633840495,0.00219803,91757.0,91756.0,0.46353]
[1763633840996,0.00219803,91757.0,91756.0,0.46453]
[1763633841501,0.10164803,91757.0,91756.0,0.49357]
[1763633842587,0.10164803,91757.0,91756.0,0.49257]
[1763633846893,0.10164803,91757.0,91756.0,0.13177]
[1763633849402,0.2021336,91742.0,91741.0,0.45239357]
[1763633849600,0.20433163,91742.0,91741.0,0.45239357]
[1763633852109,0.00219803,91742.0,91741.0,0.45239357]
[1763633852303,0.04849803,91742.0,91741.0,0.45239357]
[1763633852702,0.09216803,91742.0,91741.0,0.45239357]
[1763633853412,0.09216803,91742.0,91741.0,0.45339357]
[1763633853801,0.09216803,91742.0,91741.0,0.45439357]
[1763633854404,0.09216803,91742.0,91741.0,0.45339357]
[1763633854609,0.09216803,91742.0,91741.0,0.45439357]
[1763633855815,0.09216803,91742.0,91741.0,0.45339357]
[1763633856114,0.09216803,91742.0,91741.0,0.45439357]
[1763633856498,0.09216803,91742.0,91741.0,0.40793357]
[1763633856703,0.09216803,91742.0,91741.0,0.00216357]
[1763633856899,0.09216803,91742.0,91741.0,0.04350357]
[1763633857107,0.09216803,91742.0,91741.0,0.08910357]
[1763633857506,0.09216803,91742.0,91741.0,0.09010357]
[1763633858517,0.09216803,91742.0,91741.0,0.08910357]
[1763633860114,0.09216803,91742.0,91741.0,0.04250357]
[1763633860317,0.09216803,91742.0,91741.0,0.00016357]
[1763633860818,0.09216803,91742.0,91741.0,0.08910357]
[1763633863018,0.09216803,91742.0,91741.0,0.04250357]
[1763633863515,0.09216803,91742.0,91741.0,0.00016357]
[1763633863815,0.08997,91722.0,91721.0,0.54758909]
[1763633864115,0.04849803,91722.0,91721.0,0.44974]
[1763633864314,0.04849803,91722.0,91721.0,1.94974]
[1763633865219,0.09216803,91722.0,91721.0,1.94974]
[1763633865604,0.09216803,91722.0,91721.0,1.95174]
[1763633866018,0.09216803,91722.0,91721.0,1.95074]
[1763633866718,0.0710507,91722.0,91721.0,1.95393803]
[1763633866916,0.0710507,91722.0,91721.0,1.95493803]
[1763633867311,0.09013347,91731.0,91730.0,0.08894]
[1763633867519,0.19614614,91731.0,91730.0,0.09113803]
[1763633868216,0.09086614,91731.0,91730.0,0.09113803]
[1763633868410,0.00089614,91731.0,91730.0,0.09113803]
[1763633868610,0.00016347,91731.0,91730.0,0.45193803]
[1763633868804,0.4071,91746.0,91745.0,0.08894]
[1763633869010,0.51311267,91746.0,91745.0,0.09113803]
[1763633869316,0.45150267,91746.0,91745.0,0.09113803]
[1763633870008,0.45150267,91746.0,91745.0,0.00219803]
[1763633870516,0.45150267,91746.0,91745.0,0.09113803]
[1763633870913,0.45150267,91746.0,91745.0,0.09213803]
[1763633871820,0.45150267,91746.0,91745.0,0.09313803]
[1763633872219,0.55678267,91746.0,91745.0,0.09313803]
[1763633873419,0.55678267,91746.0,91745.0,0.09213803]
[1763633874115,0.55678267,91746.0,91745.0,0.09313803]
[1763633874817,0.55678267,91746.0,91745.0,0.09213803]
[1763633875015,0.55678267,91746.0,91745.0,0.09313803]
[1763633876415,0.45150267,91746.0,91745.0,0.09213803]
[1763633876615,0.55678267,91746.0,91745.0,0.09313803]
[1763633877224,0.55678267,91746.0,91745.0,0.09213803]
[1763633877425,0.55678267,91746.0,91745.0,0.09313803]
[1763633878514,0.55678267,91746.0,91745.0,0.09213803]
[1763633880011,0.58436267,91746.0,91745.0,0.09213803]
[1763633880411,0.55678267,91746.0,91745.0,0.09213803]
[1763633880620,0.55678267,91746.0,91745.0,0.09113803]
[1763633881819,0.45150267,91746.0,91745.0,0.09113803]
[1763633882018,0.40783267,91746.0,91745.0,0.09113803]
[1763633882419,0.45150267,91746.0,91745.0,0.09113803]
[1763633883822,0.04440267,91746.0,91745.0,0.20024803]
[1763633884025,0.00073267,91746.0,91745.0,0.20224803]
[1763633884226,0.08239347,91755.0,91754.0,0.08755]
[1763633884425,0.08239347,91755.0,91754.0,0.08974803]
[1763633884725,0.04041614,91755.0,91754.0,0.08974803]
[1763633885416,0.08312614,91755.0,91754.0,0.08974803]
[1763633886825,0.08312614,91755.0,91754.0,0.09074803]
[1763633887220,0.08312614,91755.0,91754.0,0.08974803]
[1763633887423,0.08312614,91755.0,91754.0,0.09074803]
[1763633887625,0.08312614,91755.0,91754.0,0.09174803]
[1763633887819,0.08312614,91755.0,91754.0,0.09074803]
[1763633888013,0.08312614,91755.0,91754.0,0.09174803]
[1763633888520,0.19222424,91755.0,91754.0,0.09174803]
[1763633890630,0.19222424,91755.0,91754.0,0.09074803]
[1763633890827,0.08312614,91755.0,91754.0,0.09074803]
[1763633891022,0.08312614,91755.0,91754.0,0.09174803]
[1763633891330,0.19222424,91755.0,91754.0,0.09174803]
[1763633891627,0.19222424,91755.0,91754.0,0.09074803]
[1763633891829,0.08312614,91755.0,91754.0,0.09174803]
[1763633892323,0.00016347,91755.0,91754.0,0.09174803]
[1763633892629,0.19222424,91755.0,91754.0,0.09174803]
[1763633892834,0.08312614,91755.0,91754.0,0.09174803]
[1763633893728,0.08312614,91755.0,91754.0,0.09074803]
[1763633894028,0.08312614,91755.0,91754.0,0.09174803]
[1763633894229,0.04041614,91755.0,91754.0,0.09174803]
[1763633894428,0.04041614,91755.0,91754.0,0.09074803]
[1763633894630,0.04041614,91755.0,91754.0,0.09174803]
[1763633894929,0.00089614,91755.0,91754.0,0.09174803]
[1763633895123,0.00016347,91755.0,91754.0,0.09174803]
[1763633897429,0.2965966,91765.0,91764.0,0.08755]
[1763633897628,0.2965966,91765.0,91764.0,0.08974803]
[1763633897823,0.2965966,91765.0,91764.0,0.11566803]
[1763633898226,0.1913166,91765.0,91764.0,0.11566803]
[1763633899425,0.19204927,91765.0,91764.0,0.11566803]
[1763633899627,0.19204927,91765.0,91764.0,0.08974803]
[1763633900726,0.08296267,91765.0,91764.0,0.08974803]
[1763633902829,0.08223,91765.0,91764.0,0.19883543]
[1763633903031,0.19204887,91765.0,91764.0,0.08974803]
[1763633903224,0.20385887,91765.0,91764.0,0.08974803]
[1763633904535,0.19204887,91765.0,91764.0,0.08974803]
[1763633909035,0.08296267,91765.0,91764.0,0.08974803]
[1763633909243,0.08296267,91765.0,91764.0,0.19883543]
[1763633912330,0.08296267,91765.0,91764.0,0.08974803]
[1763633915043,0.08223,91765.0,91764.0,0.08974803]
[1763633915236,0.08296267,91765.0,91764.0,0.08974803]
[1763633915540,0.08296267,91765.0,91764.0,0.19883543]
[1763633916743,0.08223,91765.0,91764.0,0.19883543]
[1763633917543,0.00027243,91766.0,91765.0,0.09771]
[1763633917742,0.00027243,91766.0,91765.0,0.09990803]
[1763633917944,0.03778243,91766.0,91765.0,0.09990803]
[1763633918446,0.07490243,91766.0,91765.0,0.09990803]
[1763633919741,0.18398753,91766.0,91765.0,0.09990803]
[1763633919938,0.07490243,91766.0,91765.0,0.09990803]
[1763633920441,0.00027243,91766.0,91765.0,0.09990803]
[1763633920646,0.07479347,91774.0,91773.0,0.07561]
[1763633920945,0.07552614,91774.0,91773.0,0.07780803]
[1763633921245,0.07463,91787.0,91786.0,0.1846713]
[1763633921544,0.02533133,91787.0,91786.0,0.18686933]
[1763633921843,0.3608,91798.0,91786.0,0.18686933]
[1763633921844,0.43543,91798.0,91797.0,0.07561]
[1763633922140,0.38613261,91798.0,91797.0,0.07780803]
[1763633922341,0.00027231,91806.0,91805.0,0.07561]
[1763633922342,0.18393981,91806.0,91805.0,0.07561]
[1763633922547,0.20924638,91806.0,91805.0,0.07780803]
[1763633922735,0.20997905,91806.0,91805.0,0.07780803]
[1763633923040,0.23341905,91806.0,91805.0,0.07780803]
[1763633923443,0.10094155,91806.0,91805.0,0.07780803]
[1763633923647,0.20997905,91806.0,91805.0,0.07780803]
[1763633924548,0.10094155,91806.0,91805.0,0.07780803]
[1763633924937,0.07563498,91806.0,91805.0,0.07780803]
[1763633926131,0.07490231,91806.0,91805.0,0.07780803]
[1763633926337,0.07563498,91806.0,91805.0,0.07780803]
[1763633927442,0.07563498,91806.0,91805.0,0.18684673]
[1763633930144,0.07563498,91806.0,91805.0,0.07780803]
[1763633933339,0.09907498,91806.0,91805.0,0.00219803]
[1763633934548,0.09907498,91806.0,91805.0,0.07780803]
[1763633935649,0.09907498,91806.0,91805.0,0.00219803]
[1763633935853,0.07463,91793.0,91792.0,0.54161]
[1763633936054,0.07536267,91793.0,91792.0,0.54380803]
[1763633936453,0.18441567,91793.0,91792.0,0.54380803]
[1763633937051,0.18441567,91793.0,91792.0,0.43860803]
[1763633937250,0.07536267,91793.0,91792.0,0.43960803]
[1763633937448,0.03739231,91806.0,91805.0,0.07561]
[1763633937659,0.18467248,91806.0,91805.0,0.07780803]
[1763633938250,0.07563498,91806.0,91805.0,0.07780803]
[1763633940154,0.00100498,91806.0,91805.0,0.07780803]
[1763633940451,0.00027231,91806.0,91805.0,0.07780803]
[1763633940851,0.07490231,91806.0,91805.0,0.07780803]
[1763633941249,0.00010814,91807.0,91806.0,0.2067475]
[1763633941449,0.288845,91825.0,91824.0,0.07561]
[1763633941655,0.28957767,91825.0,91824.0,0.07780803]
[1763633942558,0.28957767,91825.0,91824.0,0.00219803]
[1763633942860,0.28957767,91825.0,91824.0,0.07299803]
[1763633943354,0.28957767,91825.0,91824.0,0.09320803]
[1763633943355,0.07536267,91825.0,91824.0,0.09320803]
[1763633944460,0.07636267,91825.0,91824.0,0.09320803]
[1763633944651,0.07736267,91825.0,91824.0,0.09320803]
[1763633945360,0.07736267,91825.0,91824.0,0.07299803]
[1763633946262,0.07736267,91825.0,91824.0,0.00219803]
[1763633947357,0.1414057,91816.0,91815.0,0.07096337]
[1763633947553,0.14213837,91816.0,91815.0,0.0731614]
[1763633947754,0.18109837,91816.0,91815.0,0.0731614]
[1763633949562,0.18209837,91816.0,91815.0,0.0731614]
[1763633949862,0.03411267,91816.0,91815.0,0.0731614]
[1763633951458,0.07307267,91816.0,91815.0,0.0731614]
[1763633954953,0.03411267,91816.0,91815.0,0.0731614]
[1763633955157,0.07307267,91816.0,91815.0,0.0731614]
[1763633956564,0.07307267,91816.0,91815.0,0.00016337]
[1763633956967,0.09833296,91816.0,91815.0,0.00016337]
[1763633967074,0.07134,91801.0,91800.0,0.03427]
[1763633967279,0.18111617,91801.0,91800.0,0.00219803]
[1763633967673,0.18111617,91801.0,91800.0,0.06807803]
[1763633969173,0.1724442,91792.0,91791.0,0.00016337]
[1763633969374,0.17317687,91792.0,91791.0,0.00016337]
[1763633969987,0.19843206,91792.0,91791.0,0.00016337]
[1763633970174,0.17317687,91792.0,91791.0,0.00016337]
[1763633970482,0.17317687,91792.0,91791.0,0.00116337]
[1763633971582,0.17317687,91792.0,91791.0,0.00216337]
[1763633971982,0.17317687,91792.0,91791.0,0.0361314]
[1763633972680,0.17317687,91792.0,91791.0,0.0351314]
[1763633972885,0.17317687,91792.0,91791.0,0.0677414]
[1763633973282,0.17317687,91792.0,91791.0,0.0667414]
[1763633973471,0.17317687,91792.0,91791.0,0.0677414]
[1763633974072,0.17317687,91792.0,91791.0,0.0667414]
[1763633974273,0.17317687,91792.0,91791.0,0.0677414]
[1763633976086,0.17317687,91792.0,91791.0,0.0667414]
[1763633976288,0.17317687,91792.0,91791.0,0.0677414]
[1763633977989,0.17317687,91792.0,91791.0,0.0667414]
[1763633978187,0.17317687,91792.0,91791.0,0.0677414]
[1763633978384,0.00073267,91792.0,91791.0,0.0677414]
[1763633979491,0.02963267,91792.0,91791.0,0.0677414]
[1763633981285,0.00073267,91792.0,91791.0,0.4285414]
[1763633981490,0.00073267,91792.0,91791.0,0.4275414]
[1763633981793,0.1684091,91797.0,91796.0,0.06112]
[1763633981995,0.05936,91797.0,91796.0,0.06331803]
[1763633982586,0.1684082,91797.0,91796.0,0.06331803]
[1763633983290,0.05936,91797.0,91796.0,0.06331803]
[1763633985387,0.39126,91806.0,91805.0,0.07434]
[1763633985582,0.52993017,91806.0,91805.0,0.07653803]
[1763633985780,0.42089267,91806.0,91805.0,0.07653803]
[1763633985984,0.02963267,91806.0,91805.0,0.07653803]
[1763633986895,0.06009267,91806.0,91805.0,0.07653803]
[1763633987090,0.1090223,91819.0,91805.0,0.07653803]
[1763633987091,0.1090107,91829.0,91809.0,0.06112]
[1763633987299,0.1090285,91814.0,91809.0,0.06331803]
[1763633987795,0.1090254,91817.0,91809.0,0.06331803]
[1763633988396,0.1090276,91815.0,91809.0,0.06331803]
[1763633989300,0.12551039,91820.0,91809.0,0.06331803]
[1763633989497,0.1090319,91811.0,91809.0,0.06431803]
[1763633989699,0.02979571,91810.0,91809.0,0.06431803]
[1763633990299,0.00016304,91810.0,91809.0,0.06431803]
[1763633990904,0.00016304,91810.0,91809.0,0.42611803]
[1763633995222,0.5291753,91825.0,91824.0,0.06112]
[1763633995427,0.52990797,91825.0,91824.0,0.06331803]
[1763633996314,0.42089267,91825.0,91824.0,0.08236803]
[1763633996520,0.05936,91836.0,91835.0,0.06112]
[1763633996717,0.05936,91836.0,91835.0,0.06331803]
[1763633997123,0.06009267,91836.0,91835.0,0.06331803]
[1763633997827,0.07915267,91836.0,91835.0,0.00219803]
[1763633998027,0.08015267,91836.0,91835.0,0.00219803]
[1763633998215,0.08115267,91836.0,91835.0,0.00219803]
[1763633999329,0.08115267,91836.0,91835.0,0.03203803]
[1763633999720,0.06209267,91836.0,91835.0,0.06331803]
[1763634002926,0.03163267,91836.0,91835.0,0.06331803]
[1763634003132,0.00273267,91836.0,91835.0,0.06331803]
[1763634003322,0.002,91836.0,91835.0,0.06331803]
[1763634006126,0.3658,91854.0,91845.0,0.05898]
[1763634006327,0.4747812,91854.0,91853.0,0.05898]
[1763634006526,0.39332,91854.0,91853.0,0.06117803]
[1763634006826,0.3658,91854.0,91853.0,0.06117803]
[1763634007926,0.06337267,91854.0,91853.0,0.06117803]
[1763634008324,0.06860267,91854.0,91853.0,0.00219803]
[1763634009332,0.06860267,91854.0,91853.0,0.03004803]
[1763634010231,0.06337267,91854.0,91853.0,0.06117803]
[1763634012727,0.00573267,91854.0,91853.0,0.06117803]
[1763634012933,0.06337267,91854.0,91853.0,0.06117803]
[1763634014038,0.06337267,91854.0,91853.0,0.42197803]
[1763634014039,0.03325267,91854.0,91853.0,0.42197803]
[1763634015340,0.005,91854.0,91853.0,0.42197803]
[1763634015925,0.06337267,91854.0,91853.0,0.42197803]
[1763634017229,0.07890267,91854.0,91853.0,0.36299803]
[1763634017438,0.07890267,91854.0,91853.0,0.00219803]
[1763634018736,0.06337267,91854.0,91853.0,0.06117803]
[1763634019431,0.03325267,91854.0,91853.0,0.06117803]
[1763634019936,0.06337267,91854.0,91853.0,0.06117803]
[1763634021036,0.005,91854.0,91853.0,0.42197803]
[1763634021834,0.1666052,91867.0,91866.0,0.07635]
[1763634022038,0.16733787,91867.0,91866.0,0.07854803]
[1763634023037,0.16833787,91867.0,91866.0,0.07854803]
[1763634023429,0.3608,91874.0,91873.0,0.05898]
[1763634023639,0.1665871,91883.0,91882.0,0.05898]
[1763634023934,0.05837267,91883.0,91882.0,0.06117803]
[1763634024143,0.05764,91883.0,91882.0,0.06117803]
[1763634025233,0.05837267,91883.0,91882.0,0.06117803]
[1763634025938,0.05937267,91883.0,91882.0,0.06117803]
[1763634026338,0.05837267,91883.0,91882.0,0.06117803]
[1763634026538,0.05937267,91883.0,91882.0,0.06117803]
[1763634027942,0.00173267,91883.0,91882.0,0.06117803]
[1763634029039,0.02679267,91883.0,91882.0,0.06117803]
[1763634031033,0.02679267,91883.0,91882.0,0.42197803]
[1763634031542,0.05137267,91883.0,91882.0,0.42197803]
[1763634031741,0.02679267,91883.0,91882.0,0.42197803]
[1763634031936,0.02606,91883.0,91882.0,0.42197803]
[1763634032132,0.001,91883.0,91882.0,0.42197803]
[1763634033243,0.05107267,91883.0,91882.0,0.42197803]
[1763634033444,0.05107267,91883.0,91882.0,0.06117803]
[1763634034832,0.05107267,91883.0,91882.0,0.42197803]
[1763634035035,0.05107267,91883.0,91882.0,0.53092533]
[1763634036440,0.02655267,91883.0,91882.0,0.53092533]
[1763634036643,0.001,91883.0,91882.0,0.53092533]
[1763634036846,0.00027208,91886.0,91882.0,0.53092533]
[1763634036847,0.00027208,91886.0,91885.0,0.1609838]
[1763634037046,0.00027208,91886.0,91885.0,0.16318183]
[1763634037249,0.3608,91894.0,91892.0,0.1089344]
[1763634037447,0.1582717,91896.0,91895.0,0.05204]
[1763634037648,0.1582717,91896.0,91895.0,0.05423803]
[1763634038046,0.02482,91899.0,91898.0,0.05204]
[1763634038245,0.4945424,91903.0,91902.0,0.05204]
[1763634038447,0.41087267,91903.0,91902.0,0.05423803]
[1763634038753,0.38635267,91903.0,91902.0,0.05423803]
[1763634039054,0.05007267,91903.0,91902.0,0.05423803]
[1763634039255,0.41014,91913.0,91912.0,0.05204]
[1763634039456,0.41087267,91913.0,91912.0,0.05423803]
[1763634039654,0.51978327,91913.0,91912.0,0.05423803]
[1763634040849,0.51978327,91913.0,91912.0,0.02831803]
[1763634041950,0.1582613,91904.0,91903.0,0.00016328]
[1763634042247,0.51979397,91904.0,91903.0,0.00016328]
[1763634042956,0.51979397,91904.0,91903.0,0.00116328]
[1763634044458,0.51979397,91904.0,91903.0,0.00336131]
[1763634045160,0.51979397,91904.0,91903.0,0.00236131]
[1763634045455,0.51979397,91904.0,91903.0,0.05440131]
[1763634045657,0.51979397,91904.0,91903.0,0.07025131]
[1763634045956,0.51979397,91904.0,91903.0,0.05440131]
[1763634046959,0.51979397,91904.0,91903.0,0.05540131]
[1763634047755,0.51979397,91904.0,91903.0,0.05440131]
[1763634048153,0.51979397,91904.0,91903.0,0.05540131]
[1763634050168,0.41087267,91904.0,91903.0,0.07125131]
[1763634050364,0.36153267,91904.0,91903.0,0.07125131]
[1763634050864,0.00073267,91904.0,91903.0,0.07125131]
[1763634051247,0.133734,91911.0,91910.0,0.06789]
[1763634051448,0.15898667,91911.0,91910.0,0.07008803]
[1763634051965,0.05007267,91911.0,91910.0,0.07008803]
[1763634053357,0.02555267,91911.0,91910.0,0.07008803]
[1763634053561,0.00073267,91911.0,91910.0,0.07008803]
[1763634054157,0.02555267,91911.0,91910.0,0.07008803]
[1763634054357,0.41014,91922.0,91915.0,0.1089082]
[1763634054550,0.05007267,91921.0,91920.0,0.05204]
[1763634054754,0.15897377,91921.0,91920.0,0.05423803]